fUSD/lending_fUSD_20250916
["ID","MTS","AMOUNT","RATE_DAILY","PERIOD"]
[385808301,1758054640237,-500.0,0.00027397,2]
[385808303,1758054640246,-500.0,0.00027397,2]
[385808305,1758054640256,-570.37516471,0.00027397,2]
[385808307,1758054640265,-250.0,0.00027422,2]
[385808309,1758054640275,-4395.801978,0.00027616,6]
[385808311,1758054640284,-183.613465,0.00027616,6]
[385808313,1758054640294,-1738.065544,0.00027616,6]
[385808315,1758054640304,-2134.0,0.00027691,2]
[385808317,1758054640314,-1021.36,0.000277,2]
[385808319,1758054640323,-515.95536276,0.00028136,2]
[385808321,1758054640332,-160.0,0.0002816,2]
[385808323,1758054640341,-177.07,0.00028694,30]
[385808325,1758054640351,-211.0,0.0002888,30]
[385808327,1758054640361,-51174.33685361,0.00029,2]
[385808329,1758054640370,-4000.0,0.00029073,4]
[385808331,1758054640380,-164.24,0.00029201,2]
[385808333,1758054640389,-169.2,0.00029285,2]
[385808335,1758054640398,-168.0,0.00029471,2]
[385808337,1758054640407,-211.0,0.0002948,30]
[385808339,1758054640417,-199.2,0.00029693,30]
[385808341,1758054640426,-261.0,0.000297,2]
[385808343,1758054640442,-400.0,0.000297,10]
[385808345,1758054640452,-2122.65844117,0.000297,2]
[385808347,1758054640461,-177.07,0.00029714,30]
[385808349,1758054640471,-2779.23358536,0.0002973,2]
[385808351,1758054640480,-151.0,0.00029732,7]
[385808353,1758054640490,-2303.25360012,0.00029735,2]
[385808355,1758054640499,-83743.13521164,0.00029735,2]
[385808575,1758054643002,-2127.5000002,0.00029735,2]
[385808581,1758054643056,-2247.24754,0.00029735,2]
[385808583,1758054643068,-175801.0317952,0.00029735,2]
[385808602,1758054643269,-1067.86847001,0.00027616,6]
[385808659,1758054646155,-2908.319052,0.00027122,6]
[385808660,1758054646166,-2908.319052,0.00027369,6]
[385808661,1758054646176,-1840.45058199,0.00027616,6]
[385808663,1758054646186,-329.0240106,0.00029636,15]
[385808665,1758054646196,-10223.32261678,0.00029735,2]
[385808668,1758054646207,-4095.6479846,0.00029735,2]
[385808674,1758054646256,-8143.94920441,0.00029735,2]
[385808676,1758054646265,-742.72565589,0.00029736,2]
[385808678,1758054646277,-11998.5986265,0.00029736,2]
[385808682,1758054646305,-8998.32265429,0.00029736,2]
[385808694,1758054646415,-1862.08617678,0.00029736,2]
[385808697,1758054646427,-14809.86253185,0.00029736,2]
[385808699,1758054646439,-2309.93660418,0.00029736,2]
[385809398,1758054665083,2000.0,0.00021997,120]
[385809399,1758054665216,2000.0,0.000226,120]
[385809400,1758054665318,2000.0,0.00026274,120]
[385809401,1758054665433,2000.0,0.00026274,120]
[385809402,1758054665553,2000.0,0.00026274,120]
[385809439,1758055327360,260.03,0.00027784,120]
[385809444,1758055580949,13000.0,0.00030136,120]
[385809447,1758055699364,700.89,0.0001369,2]
[385809448,1758055699605,700.89,0.0001441,2]
[385809449,1758055699823,700.89,0.00015131,2]
[385809450,1758055700041,700.89,0.00015851,2]
[385809451,1758055700257,700.89,0.00016572,2]
[385809452,1758055700480,700.89,0.00017292,2]
[385809453,1758055700693,700.89,0.00018013,2]
[385809454,1758055700914,700.89,0.00018733,2]
[385809455,1758055701146,700.89,0.00019454,2]
[385809456,1758055789613,1632.42243483,0.0003013,120]
[385809457,1758055801002,-150.61,0.00020073,2]
[385809458,1758055802271,-245.20950577,0.00020073,2]
[385809462,1758055832054,-707.242692,0.00020022,2]
[385809463,1758055832064,-250.0,0.00020123,2]
[385809464,1758055832073,-700.89,0.00020174,2]
[385809465,1758055832083,-300.0,0.00020893,2]
[385809466,1758055832093,-1200.0,0.00020893,2]
[385809467,1758055832102,-300.0,0.00020893,2]
[385809468,1758055832112,-224.0,0.00020893,2]
[385809469,1758055832121,-500.0,0.00020894,2]
[385809470,1758055832130,-500.0,0.00020894,2]
[385809471,1758055832139,-500.0,0.00020894,2]
[385809472,1758055832149,-186.57711436,0.00020894,2]
[385809473,1758055832158,-347.20293344,0.00020894,2]
[385809474,1758055832167,-500.0,0.00020894,2]
[385809475,1758055832177,-338.54230268,0.00020894,2]
[385809476,1758055832186,-500.0,0.00020894,2]
[385809477,1758055832195,-500.0,0.00020894,2]
[385809478,1758055832206,-500.0,0.00020894,2]
[385809479,1758055832215,-500.0,0.00020894,2]
[385809480,1758055832225,-500.0,0.00020894,2]
[385809481,1758055832234,-500.0,0.00020894,2]
[385809482,1758055832243,-500.0,0.00020894,2]
[385809483,1758055832253,-500.0,0.00020894,2]
[385809484,1758055832262,-500.0,0.00020894,2]
[385809485,1758055832271,-500.0,0.00020894,2]
[385809486,1758055832280,-462.33035979,0.00020894,2]
[385809487,1758055832289,-500.0,0.00020894,2]
[385809488,1758055832299,-500.0,0.00020894,2]
[385809489,1758055832308,-500.0,0.00020894,2]
[385809490,1758055832318,-500.0,0.00020894,2]
[385809491,1758055832327,-500.0,0.00020894,2]
[385809492,1758055832341,-700.89,0.00020895,2]
[385809493,1758055832350,-169.67,0.00021115,2]
[385809494,1758055832360,-700.89,0.00021615,2]
[385809495,1758055832369,-250.0,0.0002208,2]
[385809496,1758055832378,-700.89,0.00022336,2]
[385809497,1758055832388,-300.0,0.00022729,2]
[385809498,1758055832397,-153.0,0.00022729,2]
[385809499,1758055832406,-732.0,0.00022837,2]
[385809500,1758055832416,-700.89,0.00023056,2]
[385809501,1758055832426,-700.89,0.00023777,2]
[385809502,1758055832438,-700.89,0.00024497,2]
[385809503,1758055832448,-223.63555778,0.00024499,2]
[385809504,1758055832457,-1200.0,0.00024598,2]
[385809505,1758055832467,-240.0,0.00024598,2]
[385809506,1758055832477,-500.0,0.000246,2]
[385809507,1758055832486,-5852.12136112,0.00024896,2]
[385809508,1758055832495,-15491.92168924,0.000249,2]
[385809509,1758055832504,-211.62,0.00024937,2]
[385809510,1758055832513,-700.89,0.00025218,2]
[385809512,1758055832522,-700.89,0.00025938,2]
[385809514,1758055832532,-5954.40672831,0.00026,2]
[385809516,1758055832541,-200.0,0.00026238,2]
[385809518,1758055832550,-150.0,0.000263,7]
[385809520,1758055832559,-2227.84,0.00026319,2]
[385809522,1758055832568,-666.0,0.00026582,3]
[385809524,1758055832578,-700.89,0.00026659,2]
[385809526,1758055832587,-871.456148,0.00027309,2]
[385809528,1758055832596,-321.99,0.00027318,2]
[385809530,1758055832606,-909.72,0.00027318,2]
[385809533,1758055832615,-954.48247,0.0002734,2]
[385809535,1758055832625,-324.1,0.00027372,2]
[385809536,1758055832634,-700.89,0.00027379,2]
[385809539,1758055832643,-230.04168497,0.00027397,2]
[385809541,1758055832653,-6459.22,0.00027444,2]
[385809543,1758055832662,-3769.41,0.00027449,2]
[385809545,1758055832671,-150.0,0.00027486,2]
[385809547,1758055832681,-18119.2,0.00027495,2]
[385809549,1758055832690,-161.67,0.00027633,30]
[385809551,1758055832699,-871.456148,0.00027646,2]
[385809553,1758055832709,-170.53,0.00027654,2]
[385809555,1758055832718,-4321.51,0.00027686,2]
[385809557,1758055832727,-543.09,0.00027734,2]
[385809559,1758055832736,-213.1401216,0.00027786,2]
[385809561,1758055832746,-160.0,0.00027786,2]
[385809563,1758055832755,-160.0,0.00027786,2]
[385809564,1758055832764,-2387.38,0.00027811,2]
[385809565,1758055832774,-500.0,0.00027902,2]
[385809567,1758055832784,-871.456148,0.00027908,2]
[385809568,1758055832793,-871.456148,0.00028017,2]
[385809569,1758055832804,-919.22,0.000282,2]
[385809570,1758055832813,-9999.99,0.00028203,2]
[385809571,1758055832822,-18796.87,0.00028203,2]
[385809572,1758055832831,-6449.02,0.00028203,2]
[385809573,1758055832841,-207.0,0.0002828,2]
[385809574,1758055832850,-871.456148,0.00028301,2]
[385809575,1758055832859,-163.12,0.00028309,2]
[385809576,1758055832869,-954.48248,0.0002834,2]
[385809577,1758055832878,-326.45,0.00028485,30]
[385809578,1758055832888,-152.0,0.00028523,3]
[385809579,1758055832897,-871.456148,0.00028659,2]
[385809580,1758055832906,-321.99,0.00028684,2]
[385809581,1758055832915,-171.48,0.00028838,2]
[385809582,1758055832926,-207.0,0.0002888,2]
[385809583,1758055832935,-871.456148,0.00028962,2]
[385809584,1758055832944,-871.456148,0.00029233,2]
[385809585,1758055832954,-264.0,0.00029321,2]
[385809586,1758055832963,-954.48248,0.0002934,2]
[385809587,1758055832973,-2838.47544244,0.00029389,2]
[385809588,1758055832987,-13411.8235287,0.00029389,2]
[385809589,1758055832996,-871.45615,0.00029465,2]
[385809590,1758055833006,-207.0,0.0002948,2]
[385809591,1758055833015,-974.8173643,0.00029489,2]
[385809592,1758055833025,-1168.8300001,0.00029489,2]
[385809593,1758055833035,-5883.2707042,0.00029489,2]
[385809594,1758055833045,-4102.18149121,0.00029489,2]
[385809595,1758055833064,-622.0,0.00029489,2]
[385809596,1758055833076,-3174.28713519,0.00029489,2]
[385809597,1758055833091,-784.7275285,0.00029489,2]
[385809598,1758055833156,-4472.61728148,0.00029489,2]
[385809599,1758055833169,-37063.65594712,0.00029489,2]
[385809600,1758055833179,-11819.3877959,0.00029489,2]
[385809601,1758055833189,-326.45,0.00029544,30]
[385809602,1758055833198,-2500.0,0.00029546,2]
[385809603,1758055833209,-16250.29897114,0.00029583,2]
[385809604,1758055833218,-251.0,0.000296,2]
[385809605,1758055833228,-500.0,0.000296,10]
[385809606,1758055833237,-9140.01930811,0.00029646,2]
[385809607,1758055833246,-405.40790692,0.00029646,15]
[385809608,1758055833255,-336.7644792,0.00029646,2]
[385809609,1758055833264,-33245.5037,0.00029646,2]
[385809610,1758055833274,-1000.0,0.00029646,2]
[385809611,1758055833283,-3545.70550309,0.0002967,2]
[385809612,1758055833293,-1100.0,0.000297,10]
[385809613,1758055833302,-200.0,0.00029736,2]
[385809614,1758055833312,-89202.5856871,0.00029736,2]
[385809615,1758055833321,-1151.62680006,0.00029745,2]
[385809616,1758055833332,-258560.99883103,0.00029745,2]
[385809617,1758055833343,-95252.38776441,0.00029746,2]
[385809618,1758055833557,-759.80301203,0.00029746,2]
[385809619,1758055833568,-13691.77965881,0.00029746,2]
[385809620,1758055833579,-14782.57810877,0.00029746,2]
[385809622,1758055837950,-308.60086868,0.00029746,2]
[385809623,1758055838061,-3582.51498611,0.00029746,2]
[385809624,1758055838073,-623.32171801,0.00029746,2]
[385809625,1758055838170,-96311.26827358,0.00029746,2]
[385809626,1758055838180,-25200.0754755,0.00029746,2]
[385809627,1758055838189,-151.0,0.00029746,7]
[385809628,1758055838198,-247.597216,0.00029746,7]
[385809629,1758055838208,-500.0,0.00029773,5]
[385809630,1758055838217,-500.0,0.00029773,2]
[385809631,1758055838227,-500.0,0.00029773,3]
[385809632,1758055838237,-500.0,0.00029773,5]
[385809633,1758055838247,-500.0,0.00029773,3]
[385809634,1758055838257,-500.0,0.00029773,5]
[385809635,1758055838267,-503.94611895,0.00029773,5]
[385809636,1758055838277,-500.0,0.00029773,5]
[385809638,1758055838286,-500.0,0.00029773,5]
[385809639,1758055838296,-610.55427379,0.00029773,5]
[385809642,1758055838306,-500.0,0.00029773,5]
[385809645,1758055838316,-500.0,0.00029773,5]
[385809648,1758055838326,-506.71425388,0.00029773,5]
[385809650,1758055838339,-212.85603297,0.00029773,5]
[385809653,1758055838349,-500.0,0.00029773,5]
[385809656,1758055838358,-500.81824845,0.00029773,5]
[385809659,1758055838368,-500.0,0.00029773,5]
[385809661,1758055838377,-336.76447918,0.00029773,2]
[385809663,1758055838387,-16250.29897114,0.00029776,2]
[385809664,1758055838396,-2655.44707852,0.0002979,2]
[385809666,1758055838406,-5247.21092277,0.0002979,2]
[385809668,1758055838415,-34031.7495382,0.00029791,2]
[385809669,1758055838425,-1700.0,0.000298,10]
[385809670,1758055838434,-115438.640301,0.00029801,2]
[385809671,1758055838444,-79407.4155892,0.00029801,2]
[385809672,1758055838453,-3781.30550425,0.00029801,2]
[385809673,1758055838463,-151.0,0.00029811,7]
[385809674,1758055838473,-6231.47942253,0.00029811,2]
[385809675,1758055838486,-2908.53988554,0.00029811,2]
[385809676,1758055838495,-169.99810585,0.00029873,5]
[385809677,1758055838505,-173.90410178,0.00029873,5]
[385809678,1758055838515,-500.0,0.00029873,5]
[385809679,1758055838524,-3781.30550425,0.00029879,2]
[385809680,1758055838534,-1024.18522079,0.00029888,2]
[385809681,1758055838543,-151.0,0.00029888,7]
[385809683,1758055838552,-151.0,0.00029888,7]
[385809685,1758055838561,-151.0,0.00029888,7]
[385809687,1758055838571,-151.0,0.00029889,7]
[385809688,1758055838580,-190.58814,0.00029889,7]
[385809689,1758055838589,-151.0,0.00029889,7]
[385809690,1758055838598,-151.0,0.00029889,7]
[385809691,1758055838608,-151.0,0.00029889,7]
[385809692,1758055838618,-151.0,0.00029889,7]
[385809693,1758055838627,-15125.222017,0.00029889,2]
[385809694,1758055838637,-151.0,0.00029889,2]
[385809695,1758055838646,-3781.30550425,0.00029897,2]
[385809696,1758055838657,-151.0,0.00029899,7]
[385809697,1758055838667,-15671.60862171,0.000299,2]
[385809698,1758055838681,-37018.99564858,0.000299,2]
[385809699,1758055838690,-5000.0,0.000299,2]
[385809700,1758055838700,-175.36239511,0.000299,2]
[385809701,1758055838710,-2200.0,0.000299,10]
[385809702,1758055838720,-151.0,0.000299,7]
[385809703,1758055838729,-336.76447918,0.000299,2]
[385809704,1758055838739,-7091.34,0.000299,2]
[385809705,1758055838749,-16250.29897114,0.0002997,2]
[385809706,1758055838760,-503.81858465,0.00029973,5]
[385809707,1758055838770,-500.0,0.00029973,5]
[385809708,1758055838781,-9140.01930807,0.00029976,2]
[385809709,1758055838791,-310.29710117,0.00029985,2]
[385809710,1758055838801,-151.0,0.0002999,5]
[385809711,1758055838811,-30250.444034,0.0002999,2]
[385809712,1758055838821,-151.0,0.0002999,2]
[385809713,1758055838830,-803.481,0.00029992,24]
[385809714,1758055838839,-150.0,0.00029999,2]
[385809715,1758055838849,-1659.05092484,0.0003,5]
[385809716,1758055838859,-19514.13409259,0.0003,2]
[385809717,1758055838868,-5312.46146067,0.0003,2]
[385809718,1758055838880,-14379.27219202,0.0003,2]
[385809719,1758055838903,-228.763832,0.00029746,7]
[385809720,1758055838913,-337.52768655,0.0003,2]
[385809725,1758055840491,-228.763832,0.00029746,7]
[385809727,1758055840501,-228.763832,0.00029801,7]
[385809729,1758055840510,-228.763832,0.00029801,7]
[385809731,1758055840519,-49393.30337615,0.0003,2]
[385809734,1758055840529,-1782.61330665,0.0003,2]
[385809736,1758055840538,-983.05206423,0.0003,2]
[385809738,1758055840549,-602.2617745,0.0003,2]
[385809740,1758055840559,-153.0,0.0003,14]
[385809742,1758055840568,-151.0,0.0003,7]
[385809744,1758055840578,-4000.0,0.0003,4]
[385809746,1758055840587,-228.763832,0.0003,7]
[385809748,1758055840596,-151.972686,0.00030016,7]
[385809750,1758055840606,-151.0,0.00030016,7]
[385809752,1758055840615,-200.0,0.00030033,2]
[385809754,1758055840625,-151.0,0.00030042,4]
[385809756,1758055840635,-321.99,0.0003005,2]
[385809758,1758055840644,-211.0,0.0003008,30]
[385809760,1758055840653,-207.0,0.0003008,2]
[385809762,1758055840663,-211.62,0.00030091,2]
[385809764,1758055840673,-3781.30550425,0.00030104,2]
[385809766,1758055840684,-3781.30550425,0.00030108,2]
[385809768,1758055840694,-5163.0,0.00030114,2]
[385809770,1758055840704,-1000.0,0.00030115,2]
[385809772,1758055840714,-7562.6110085,0.00030116,2]
[385809774,1758055840724,-151.0,0.00030116,2]
[385809776,1758055840734,-5163.0,0.00030116,2]
[385809778,1758055840743,-5163.0,0.00030118,2]
[385809780,1758055840753,-150.0,0.00030122,2]
[385809782,1758055840763,-470.0,0.00030122,2]
[385809784,1758055840772,-150.0,0.00030122,2]
[385809787,1758055840782,-203.19673954,0.00030122,2]
[385809789,1758055840791,-500.0,0.00030122,2]
[385809791,1758055840801,-150.0,0.00030122,2]
[385809793,1758055840810,-150.0,0.00030122,2]
[385809795,1758055840820,-500.0,0.00030122,2]
[385809797,1758055840829,-150.0,0.00030122,2]
[385809799,1758055840839,-150.0,0.00030122,2]
[385809801,1758055840848,-150.0,0.00030122,2]
[385809803,1758055840857,-150.0,0.00030122,2]
[385809805,1758055840866,-150.0,0.00030122,2]
[385809807,1758055840875,-150.0,0.00030122,2]
[385809809,1758055840885,-500.0,0.00030122,2]
[385809811,1758055840894,-150.0,0.00030122,2]
[385809813,1758055840903,-151.0,0.00030125,2]
[385809815,1758055840912,-47958.89478774,0.00030126,2]
[385809817,1758055840922,-151.0,0.00030126,2]
[385809819,1758055840932,-43481.3503468,0.0003013,2]
[385809821,1758055840941,-151.29881257,0.0003013,14]
[385809823,1758055840950,-300.0,0.00030134,10]
[385809825,1758055840960,-300.0,0.00030134,10]
[385809827,1758055840970,-300.0,0.00030135,10]
[385809829,1758055840987,-137081.1366498,0.00030135,2]
[385809831,1758055840996,-184.311228,0.00030135,7]
[385809833,1758055841005,-159.8107903,0.00030135,20]
[385809835,1758055841015,-228.763832,0.00030135,7]
[385809837,1758055841024,-157.23424075,0.00030136,2]
[385809839,1758055841034,-168.154749,0.00030136,6]
[385809841,1758055841043,-400.0,0.00030136,6]
[385809843,1758055841053,-400.0,0.00030136,6]
[385809845,1758055841063,-400.0,0.00030136,6]
[385809848,1758055841073,-400.0,0.00030136,6]
[385809850,1758055841082,-408.51581995,0.00030136,6]
[385809851,1758055841092,-400.0,0.00030136,6]
[385809853,1758055841104,-400.0,0.00030136,6]
[385809855,1758055841113,-401.05505654,0.00030136,6]
[385809857,1758055841123,-400.0,0.00030136,6]
[385809859,1758055841132,-208.26552532,0.00030136,2]
[385809862,1758055841148,-400.0,0.00030136,6]
[385809864,1758055841162,-378.94679627,0.00030136,6]
[385809866,1758055841172,-400.0,0.00030136,6]
[385809869,1758055841182,-400.0,0.00030136,6]
[385809871,1758055841192,-400.0,0.00030136,6]
[385809873,1758055841201,-357.88281402,0.00030136,6]
[385809875,1758055841211,-400.0,0.00030136,6]
[385809877,1758055841221,-400.0,0.00030136,6]
[385809879,1758055841231,-400.0,0.00030136,6]
[385809881,1758055841240,-400.0,0.00030136,6]
[385809883,1758055841249,-400.0,0.00030136,6]
[385809885,1758055841259,-400.0,0.00030136,6]
[385809887,1758055841269,-400.0,0.00030136,6]
[385809889,1758055841279,-400.0,0.00030136,6]
[385809891,1758055841289,-400.0,0.00030136,6]
[385809893,1758055841299,-400.0,0.00030136,6]
[385809895,1758055841308,-400.0,0.00030136,6]
[385809897,1758055841318,-400.0,0.00030136,6]
[385809899,1758055841328,-400.0,0.00030136,6]
[385809902,1758055841342,-401.08867787,0.00030136,6]
[385809904,1758055841352,-268.33569755,0.00030136,6]
[385809906,1758055841361,-400.0,0.00030136,6]
[385809908,1758055841371,-400.0,0.00030136,6]
[385809910,1758055841381,-401.41913408,0.00030136,6]
[385809912,1758055841391,-403.73582167,0.00030136,6]
[385809914,1758055841400,-500.0,0.00030136,2]
[385809916,1758055841413,-500.0,0.00030136,2]
[385809918,1758055841423,-206.99093568,0.00030136,2]
[385809920,1758055841433,-400.0,0.00030136,6]
[385809922,1758055841443,-400.0,0.00030136,6]
[385809924,1758055841453,-400.85694425,0.00030136,6]
[385809926,1758055841463,-400.0,0.00030136,6]
[385809928,1758055841473,-400.71552424,0.00030136,6]
[385809945,1758055841611,-400.0,0.00030136,6]
[385809947,1758055841621,-400.80191118,0.00030136,6]
[385809949,1758055841631,-500.0,0.00030136,6]
[385809951,1758055841640,-508.39077478,0.00030136,6]
[385809953,1758055841650,-400.0,0.00030136,6]
[385809955,1758055841659,-400.0,0.00030136,6]
[385809957,1758055841668,-400.0,0.00030136,6]
[385809959,1758055841678,-400.0,0.00030136,6]
[385809961,1758055841687,-400.0,0.00030136,6]
[385809963,1758055841696,-400.0,0.00030136,6]
[385809965,1758055841705,-400.0,0.00030136,6]
[385809967,1758055841716,-400.0,0.00030136,6]
[385809969,1758055841725,-401.40593161,0.00030136,6]
[385809972,1758055841739,-400.0,0.00030136,6]
[385809974,1758055841749,-400.0,0.00030136,6]
[385809976,1758055841758,-400.0,0.00030136,6]
[385809978,1758055841767,-400.0,0.00030136,6]
[385809980,1758055841777,-400.0,0.00030136,6]
[385809982,1758055841786,-400.0,0.00030136,6]
[385809984,1758055841796,-400.0,0.00030136,6]
[385809986,1758055841806,-400.0,0.00030136,6]
[385809988,1758055841815,-400.0,0.00030136,6]
[385809990,1758055841825,-400.0,0.00030136,6]
[385809992,1758055841834,-400.0,0.00030136,6]
[385809994,1758055841844,-400.0,0.00030136,6]
[385809996,1758055841853,-400.0,0.00030136,6]
[385809998,1758055841868,-400.0,0.00030136,6]
[385810000,1758055841877,-400.0,0.00030136,6]
[385810002,1758055841887,-400.0,0.00030136,2]
[385810004,1758055841897,-443.8767146,0.00030136,6]
[385810006,1758055841906,-400.0,0.00030136,6]
[385810008,1758055841916,-400.0,0.00030136,6]
[385810010,1758055841926,-400.0,0.00030136,6]
[385810012,1758055841935,-400.0,0.00030136,6]
[385810014,1758055841944,-400.0,0.00030136,6]
[385810016,1758055841954,-400.0,0.00030136,6]
[385810018,1758055841964,-400.0,0.00030136,6]
[385810020,1758055841974,-400.0,0.00030136,6]
[385810022,1758055841984,-400.0,0.00030136,6]
[385810024,1758055841994,-400.0,0.00030136,6]
[385810027,1758055842003,-400.0,0.00030136,6]
[385810029,1758055842013,-400.0,0.00030136,6]
[385810031,1758055842022,-400.0,0.00030136,6]
[385810033,1758055842031,-400.0,0.00030136,6]
[385810035,1758055842041,-400.0,0.00030136,6]
[385810037,1758055842050,-400.0,0.00030136,6]
[385810039,1758055842060,-400.0,0.00030136,6]
[385810041,1758055842069,-400.0,0.00030136,6]
[385810043,1758055842078,-400.0,0.00030136,6]
[385810045,1758055842087,-400.0,0.00030136,6]
[385810047,1758055842097,-400.0,0.00030136,6]
[385810049,1758055842106,-400.0,0.00030136,6]
[385810051,1758055842116,-400.0,0.00030136,6]
[385810053,1758055842125,-500.0,0.00030136,6]
[385810055,1758055842134,-400.0,0.00030136,6]
[385810057,1758055842143,-400.0,0.00030136,6]
[385810059,1758055842152,-400.0,0.00030136,6]
[385810061,1758055842161,-400.0,0.00030136,6]
[385810063,1758055842170,-400.0,0.00030136,6]
[385810065,1758055842180,-400.0,0.00030136,6]
[385810067,1758055842190,-400.0,0.00030136,6]
[385810069,1758055842199,-400.0,0.00030136,6]
[385810071,1758055842209,-400.0,0.00030136,6]
[385810073,1758055842218,-402.69969023,0.00030136,6]
[385810075,1758055842228,-400.0,0.00030136,6]
[385810077,1758055842237,-400.0,0.00030136,6]
[385810079,1758055842247,-400.0,0.00030136,6]
[385810081,1758055842256,-400.0,0.00030136,6]
[385810083,1758055842265,-400.0,0.00030136,6]
[385810085,1758055842275,-400.0,0.00030136,6]
[385810087,1758055842284,-400.0,0.00030136,6]
[385810089,1758055842294,-400.0,0.00030136,6]
[385810091,1758055842303,-400.0,0.00030136,6]
[385810092,1758055842312,-466.26,0.00030136,6]
[385810093,1758055842321,-400.0,0.00030136,6]
[385810094,1758055842330,-400.0,0.00030136,6]
[385810095,1758055842343,-400.0,0.00030136,6]
[385810096,1758055842357,-400.0,0.00030136,6]
[385810097,1758055842366,-400.0,0.00030136,6]
[385810098,1758055842375,-400.0,0.00030136,6]
[385810099,1758055842385,-400.0,0.00030136,6]
[385810100,1758055842395,-400.0,0.00030136,6]
[385810101,1758055842404,-400.0,0.00030136,6]
[385810102,1758055842414,-400.0,0.00030136,6]
[385810104,1758055842424,-400.0,0.00030136,6]
[385810106,1758055842434,-400.0,0.00030136,6]
[385810108,1758055842444,-400.0,0.00030136,6]
[385810110,1758055842453,-400.0,0.00030136,6]
[385810112,1758055842462,-400.0,0.00030136,6]
[385810114,1758055842473,-400.0,0.00030136,6]
[385810116,1758055842482,-400.0,0.00030136,6]
[385810118,1758055842492,-400.0,0.00030136,6]
[385810120,1758055842501,-400.0,0.00030136,6]
[385810122,1758055842511,-400.0,0.00030136,6]
[385810124,1758055842520,-400.0,0.00030136,6]
[385810126,1758055842530,-400.0,0.00030136,6]
[385810128,1758055842539,-400.0,0.00030136,6]
[385810131,1758055842553,-400.0,0.00030136,6]
[385810133,1758055842563,-400.0,0.00030136,6]
[385810135,1758055842573,-400.0,0.00030136,6]
[385810137,1758055842582,-400.0,0.00030136,6]
[385810139,1758055842592,-400.0,0.00030136,6]
[385810141,1758055842601,-400.0,0.00030136,6]
[385810143,1758055842611,-400.0,0.00030136,6]
[385810145,1758055842620,-400.0,0.00030136,6]
[385810147,1758055842630,-400.0,0.00030136,6]
[385810149,1758055842640,-400.0,0.00030136,6]
[385810151,1758055842650,-400.0,0.00030136,6]
[385810153,1758055842659,-400.0,0.00030136,6]
[385810155,1758055842669,-400.0,0.00030136,6]
[385810157,1758055842679,-400.0,0.00030136,6]
[385810159,1758055842689,-400.0,0.00030136,6]
[385810162,1758055842698,-400.0,0.00030136,6]
[385810163,1758055842707,-400.0,0.00030136,6]
[385810165,1758055842717,-400.0,0.00030136,6]
[385810168,1758055842727,-400.0,0.00030136,6]
[385810170,1758055842737,-400.0,0.00030136,6]
[385810172,1758055842746,-466.99,0.00030136,6]
[385810174,1758055842756,-400.0,0.00030136,6]
[385810176,1758055842765,-400.0,0.00030136,6]
[385810178,1758055842775,-400.0,0.00030136,2]
[385810180,1758055842785,-400.0,0.00030136,6]
[385810182,1758055842794,-400.0,0.00030136,6]
[385810184,1758055842804,-220.767512,0.00030136,6]
[385810186,1758055842813,-400.0,0.00030136,6]
[385810188,1758055842823,-400.0,0.00030136,6]
[385810190,1758055842832,-400.0,0.00030136,6]